[Event "Gibraltar Challengers B 2020"]
[Site "Caleta"]
[Date "2020.01.27"]
[Round "4.31"]
[White "Niharika Ch"]
[Black "Filipovich, David"]
[Result "1/2-1/2"]
[ECO "B15"]
[WhiteElo "1865"]
[BlackElo "1995"]
[Annotator "NA"]
[PlyCount "89"]
[EventDate "2020.01.20"]
[EventType "swiss"]
[EventCountry "GGB"]
[SourceTitle "playchess.com"]
[Source "ChessBase"]
[SourceQuality "1"]
[TimeControl "6600+10"]

1. e4 {[%emt 0:00:03]} g6 {[%emt 0:00:11]} 2. d4 {[%emt 0:00:05]} Bg7 {[%emt 0:00:05]} 3. Nc3 {[%emt 0:00:08]} c6 {[%emt 0:00:08]} 4. Be3 {[%emt 0:00:11]} d5 {[%emt 0:00:22]} 5. h3 {[%emt 0:00:24]} Qb6 {[%emt 0:10:02]} (5... dxe4 6. Nxe4 Nd7 7. c4 Ngf6 8. Nc3 O-O 9. Nf3 Qa5 10. Qc2 e5 11. Be2 Re8 12. O-O exd4 13. Nxd4 {1-0 (27) Sargsyan,S (2529)-Aliyev,R (2385) Batumi 2019}) 6. b3 {[%emt 0:03:40] B15: Caro-Kann: 3 Nc3: 3...g6 and 3...dxe4 4 Nxe4 Nf6 5 Nxf6+ exf6} dxe4 {[%emt 0:09:50]} 7. Nxe4 {[%emt 0:01:21]} Nd7 $146 {[%emt 0:09:33]} ({Predecessor:} 7... Nh6 8. c3 Nf5 9. Bf4 Be6 10. Nf3 Nd7 11. Bd3 Nf6 12. Nc5 Bd5 13. O-O Bxf3 14. Qxf3 {½-½ (50) Kamaluddin,Y-Sakellarakis,D UECC Email 1999}) 8. Qd2 {[%emt 0:04:08]} Ngf6 {[%emt 0:01:22]} 9. Nc3 {[%emt 0:01:43]} Nd5 {[%emt 0:08:25]} 10. Nxd5 {[%emt 0:00:26]} cxd5 {[%emt 0:00:06]} 11. Ne2 {[%emt 0:01:35]} Nf6 {[%emt 0:04:35]} 12. Nc3 {[%emt 0:00:08]} Bd7 {[%emt 0:05:33]} 13. g4 {[%emt 0:06:22]} e6 {[%emt 0:16:11]} 14. Bd3 {[%emt 0:03:14]} Rc8 {[%emt 0:04:42]} 15. g5 {[%emt 0:03:11]} (15. f3 $11 {remains equal.}) 15... Ng8 {[%emt 0:00:12]} 16. Ne2 {[%emt 0:01:13]} Bb5 {[%emt 0:03:17]} 17. Bxb5+ {[%emt 0:05:47]} Qxb5 {[%emt 0:00:06]} 18. h4 {[%emt 0:00:50]} Ne7 {[%emt 0:04:56]} 19. Ng3 {[%emt 0:01:34]} Qc6 {[%emt 0:01:18]} 20. O-O-O {[%emt 0:03:44]} Qc3 {[%emt 0:00:50]} 21. Qxc3 {[%emt 0:00:19]} Rxc3 {[%emt 0:00:06]} 22. Kb2 {[%emt 0:01:38]} Rc6 {[%emt 0:00:47]} 23. h5 {[%emt 0:03:50]} Nf5 {[%emt 0:03:40]} 24. hxg6 {[%emt 0:07:56]} hxg6 {[%emt 0:00:23]} 25. Rxh8+ {[%emt 0:00:29]} Bxh8 {[%emt 0:00:07]} 26. Nxf5 {[%emt 0:00:04]} gxf5 {[%emt 0:01:44]} 27. Bf4 {[%emt 0:01:59]} Bg7 {[%emt 0:00:59]} 28. Be5 {[%emt 0:00:05]} Bxe5 {[%emt 0:01:00]} 29. dxe5 {[%emt 0:00:05]} Kf8 {[%emt 0:00:30]} 30. a4 {[%emt 0:01:54]} Kg7 {[%emt 0:00:13]} 31. Rh1 {[%emt 0:03:18]} Rc8 {[%emt 0:04:13]} 32. f4 {[%emt 0:01:15]} Rh8 {[%emt 0:00:56]} 33. Rxh8 {[%emt 0:02:22]} Kxh8 {[%emt 0:00:06]} 34. Kc3 {[%emt 0:00:42]} Kg7 {[%emt 0:00:13]} 35. Kd4 {[%emt 0:04:31]} Kf8 {[%emt 0:00:06]} 36. b4 {[%emt 0:04:38]} Ke7 {[%emt 0:01:04]} 37. a5 {[%emt 0:03:13]} Kd7 {[%emt 0:01:08]} 38. Kc5 {[%emt 0:00:25]} Kc7 {[%emt 0:02:04]} 39. b5 {[%emt 0:02:22]} Kd7 {[%emt 0:01:42]} 40. Kd4 {[%emt 0:07:37]} Kc7 $11 {[%emt 0:00:11]} 41. Kc5 {[%emt 0:00:39]} Kd7 {[%emt 0:00:05]} 42. Kb4 {[%emt 0:01:50]} Kc7 {[%emt 0:00:07]} 43. Ka4 {[%emt 0:00:25]} Kd7 {[%emt 0:01:00]} 44. Kb4 {[%emt 0:02:14]} Kc7 {[%emt 0:00:05]} 45. Kc5 {[%emt 0:00:02]} 1/2-1/2

[Event "Gibraltar Challengers B 2020"]
[Site "Caleta"]
[Date "2020.01.27"]
[Round "4.32"]
[White "Kunnavakkam, Sudarshanagopal Vin"]
[Black "Wang, Cong"]
[Result "1-0"]
[ECO "C21"]
[WhiteElo "1786"]
[BlackElo "1975"]
[Annotator "NA"]
[PlyCount "65"]
[EventDate "2020.01.20"]
[EventType "swiss"]
[EventCountry "GGB"]
[SourceTitle "playchess.com"]
[Source "ChessBase"]
[SourceQuality "1"]
[TimeControl "6600+10"]

1. e4 {[%emt 0:00:54]} e5 {[%emt 0:00:00]} 2. d4 {[%emt 0:00:45]} exd4 {[%emt 0:00:05]} 3. c3 {[%emt 0:00:11]} d5 {[%emt 0:00:07]} 4. Qxd4 {[%emt 0:00:06]} dxe4 {[%emt 0:01:40]} (4... Nf6 5. exd5 Qxd5 6. Qxd5 Nxd5 7. Nf3 Bd6 8. Bc4 Nb6 9. Bb5+ Bd7 10. Bxd7+ N8xd7 11. O-O O-O 12. Nbd2 {½-½ (46) Mariano,N (2416)-Antonio,R (2523) Tagaytay City 2004}) 5. Qxe4+ {[%emt 0:00:07]} Qe7 {[%emt 0:02:37]} 6. Qxe7+ {[%emt 0:01:48] C21: Danish Gambit} Bxe7 {[%emt 0:00:18]} 7. Bc4 {[%emt 0:00:13]} Nf6 {[%emt 0:00:43]} 8. Bf4 $146 {[%emt 0:01:12]} ({Predecessor:} 8. Nf3 O-O 9. O-O Bd6 10. Re1 Nc6 11. Bg5 Nd7 12. Nbd2 {½-½ (57) Piay Augusto,D (2240)-Vazquez,A Vilagarcia 2000}) 8... Bd6 {[%emt 0:01:35]} 9. Bxd6 {[%emt 0:01:09]} cxd6 {[%emt 0:00:01]} 10. Na3 {[%emt 0:01:47]} d5 {[%emt 0:03:22]} 11. Bb3 {[%emt 0:00:09]} a6 {[%emt 0:02:51]} 12. Rd1 {[%emt 0:01:47]} Be6 {[%emt 0:00:28]} 13. Ne2 {[%emt 0:00:58]} Nc6 {[%emt 0:01:54]} 14. Nf4 {[%emt 0:01:34]} O-O-O {[%emt 0:01:13]} 15. O-O {[%emt 0:01:36]} Na5 {[%emt 0:05:10]} 16. Nxe6 {[%emt 0:02:31]} fxe6 {[%emt 0:00:14]} 17. Bc2 {[%emt 0:01:37]} e5 {[%emt 0:01:12]} 18. Rfe1 {[%emt 0:04:01]} Rhe8 {[%emt 0:00:20]} 19. Rd2 {[%emt 0:02:45]} g6 {[%emt 0:10:45]} 20. f3 {[%emt 0:03:15]} Nc6 {[%emt 0:03:26]} 21. Bb1 {[%emt 0:04:30]} d4 {[%emt 0:03:31]} 22. cxd4 {[%emt 0:03:47]} exd4 {[%emt 0:00:08]} 23. Red1 $11 {[%emt 0:06:05]} Re6 {[%emt 0:27:02]} 24. Bd3 {[%emt 0:01:51]} b5 {[%emt 0:02:18]} 25. Nc2 {[%emt 0:00:47]} Red6 {[%emt 0:06:05]} 26. a4 {[%emt 0:01:57]} Rd5 {[%emt 0:00:36]} 27. Na3 {[%emt 0:01:36]} Nb4 {[%emt 0:02:30]} 28. axb5 {[%emt 0:00:33]} Nxd3 {[%emt 0:02:10]} 29. Rxd3 {[%emt 0:00:20]} axb5 {[%emt 0:00:05]} 30. Nc2 {[%emt 0:00:29]} Nh5 {[%emt 0:06:36]} 31. Rxd4 {[%emt 0:02:02]} Nf4 {[%emt 0:01:39]} 32. Kf2 {[%emt 0:00:44]} Nd3+ {[%emt 0:01:02]} 33. R1xd3 {[%emt 0:00:51]} 1-0

[Event "Gibraltar Challengers B 2020"]
[Site "Caleta"]
[Date "2020.01.27"]
[Round "4.33"]
[White "Hng, Mei-Xian Eunice"]
[Black "Fabregas, Oliver"]
[Result "1-0"]
[ECO "B21"]
[WhiteElo "1661"]
[BlackElo "1951"]
[Annotator "NA"]
[PlyCount "93"]
[EventDate "2020.01.20"]
[EventType "swiss"]
[EventCountry "GGB"]
[SourceTitle "playchess.com"]
[Source "ChessBase"]
[SourceQuality "1"]
[TimeControl "6600+10"]

1. e4 {[%emt 0:20:12]} c5 {[%emt 0:00:08]} 2. d4 {[%emt 0:00:20]} cxd4 {[%emt 0:00:13]} 3. c3 {[%emt 0:00:10]} d3 {[%emt 0:00:51]} 4. Bxd3 {[%emt 0:00:39]} e5 {[%emt 0:00:16]} (4... d6 5. f4 Nf6 6. Nf3 Nc6 7. O-O Bg4 8. Nbd2 e6 9. Qb3 Qc7 10. Nc4 Be7 11. Ne3 Bh5 12. h3 Bxf3 13. Rxf3 {1-0 (32) Grigoryan,K (2608)-Moussard,J (2608) chess24.com INT 2019}) 5. Nf3 {[%emt 0:04:40]} d6 {[%emt 0:01:43]} 6. O-O {[%emt 0:04:34] B21: Sicilian: 2 f4 and Morra Gambit} Nf6 {[%emt 0:00:53]} 7. h3 {[%emt 0:04:07]} Be7 {[%emt 0:00:41]} 8. Be3 {[%emt 0:00:43]} O-O {[%emt 0:01:23]} 9. Nbd2 {[%emt 0:01:52]} b6 $146 {[%emt 0:02:01]} ({Predecessor:} 9... Nc6 10. Bc2 d5 11. exd5 Nxd5 12. Qe2 Nxe3 13. Qxe3 f6 {1-0 (27) Lukacs,A-Wiendels,F Utrecht 2001}) 10. Qe2 {[%emt 0:06:05]} Bb7 {[%emt 0:00:59]} 11. a4 {[%emt 0:02:20]} Nbd7 {[%emt 0:03:05]} 12. Bc2 {[%emt 0:05:06]} d5 {[%emt 0:15:31]} 13. Bg5 {[%emt 0:14:42]} (13. exd5 $14 Nxd5 14. a5) 13... h6 {[%emt 0:07:20]} (13... dxe4 $1 $15 14. Ne1 Nd5 15. Bxe7 Qxe7 16. Bxe4 Nf4) 14. Bxf6 $1 {[%emt 0:00:55]} Bxf6 {[%emt 0:00:17]} (14... Nxf6 $14 15. exd5 (15. Nxe5 d4 $14) 15... Bxd5) 15. exd5 {[%emt 0:01:31]} Bxd5 {[%emt 0:01:15]} 16. Qd3 {[%emt 0:00:39]} e4 {[%emt 0:02:35]} 17. Nxe4 {[%emt 0:01:28]} Bxe4 {[%emt 0:01:12]} 18. Qxe4 {[%emt 0:00:10]} g6 {[%emt 0:00:23]} 19. Qf4 {[%emt 0:09:50]} Bg7 {[%emt 0:08:46]} 20. Rad1 {[%emt 0:02:55]} Qf6 {[%emt 0:04:25]} 21. Qxf6 {[%emt 0:03:30]} Nxf6 {[%emt 0:00:03]} 22. Rfe1 {[%emt 0:00:16]} Rfe8 {[%emt 0:02:11]} 23. Kf1 {[%emt 0:03:41]} Kf8 {[%emt 0:05:54]} 24. Rxe8+ {[%emt 0:02:00]} Rxe8 {[%emt 0:00:24]} 25. Re1 {[%emt 0:00:31]} Rc8 {[%emt 0:03:26]} 26. Ne5 {[%emt 0:03:24]} Nh5 {[%emt 0:09:07]} 27. Nd7+ {[%emt 0:02:20]} Kg8 {[%emt 0:00:13]} 28. Re7 {[%emt 0:01:10]} f5 {[%emt 0:06:08]} 29. g4 {[%emt 0:07:45]} fxg4 {[%emt 0:01:52]} 30. Bxg6 {[%emt 0:01:12]} Nf6 {[%emt 0:04:34]} 31. hxg4 {[%emt 0:01:34]} Nxd7 {[%emt 0:10:06]} 32. Rxd7 {[%emt 0:00:13]} a5 {[%emt 0:01:51]} 33. f4 {[%emt 0:04:52]} Rc6 {[%emt 0:01:11]} 34. Be4 {[%emt 0:01:49]} Rf6 {[%emt 0:02:10]} 35. f5 {[%emt 0:00:48]} Bf8 {[%emt 0:00:39]} 36. Bd5+ {[%emt 0:01:33]} Kh8 {[%emt 0:00:12]} 37. Be6 {[%emt 0:00:16]} Bc5 {[%emt 0:00:41]} 38. Rd8+ {[%emt 0:01:06]} Kg7 {[%emt 0:00:57]} 39. Ke2 {[%emt 0:01:03]} Rf8 {[%emt 0:02:26]} 40. Rxf8 {[%emt 0:05:18]} Bxf8 {[%emt 0:00:12]} 41. Kd3 {[%emt 0:01:25]} Kf6 {[%emt 0:00:12]} 42. Kc4 {[%emt 0:00:40]} Kg5 {[%emt 0:01:22]} 43. Kb5 {[%emt 0:00:22]} Bc5 {[%emt 0:00:06]} 44. b4 {[%emt 0:00:34]} axb4 {[%emt 0:00:29]} 45. cxb4 {[%emt 0:00:04]} Be3 $18 {[%emt 0:00:37]} 46. a5 {[%emt 0:00:21]} bxa5 {[%emt 0:00:23]} 47. bxa5 {[%emt 0:00:08]} 1-0

[Event "Gibraltar Challengers B 2020"]
[Site "Caleta"]
[Date "2020.01.27"]
[Round "4.34"]
[White "Lee, Alexandre KM"]
[Black "Mao, Yingzhou"]
[Result "0-1"]
[ECO "B33"]
[WhiteElo "1557"]
[BlackElo "1948"]
[Annotator "NA"]
[PlyCount "74"]
[EventDate "2020.01.20"]
[EventType "swiss"]
[EventCountry "GGB"]
[SourceTitle "playchess.com"]
[Source "ChessBase"]
[SourceQuality "1"]
[TimeControl "6600+10"]

1. e4 {[%emt 0:00:00]} c5 {[%emt 0:00:00]} 2. Nf3 {[%emt 0:00:12]} Nc6 {[%emt 0:00:05]} 3. d4 {[%emt 0:00:17]} cxd4 {[%emt 0:00:11]} 4. Nxd4 {[%emt 0:00:16]} Nf6 {[%emt 0:00:07]} 5. Nc3 {[%emt 0:00:36]} e5 {[%emt 0:00:10]} 6. Nde2 {[%emt 0:00:28]} Bc5 {[%emt 0:03:36]} 7. Ng3 {[%emt 0:01:45]} d6 {[%emt 0:02:10]} 8. Bc4 {[%emt 0:05:22]} Bg4 {[%emt 0:03:22]} 9. f3 {[%emt 0:02:31]} Be6 {[%emt 0:00:23]} 10. Nd5 {[%emt 0:04:01]} O-O {[%emt 0:01:55]} 11. Bg5 {[%emt 0:06:10]} Bxd5 {[%emt 0:01:50]} 12. exd5 {[%emt 0:03:06]} Na5 {[%emt 0:03:32]} 13. Bd3 {[%emt 0:01:29]} Qb6 {[%emt 0:09:45]} 14. Bxf6 $1 {[%emt 0:08:24]} gxf6 {[%emt 0:09:29]} 15. Ne4 $2 {[%emt 0:12:20]} (15. b3 $18) 15... Kg7 {[%emt 0:03:31]} 16. Nxc5 $2 {[%emt 0:05:44]} (16. Rb1 $18) 16... Qxc5 $11 {[%emt 0:03:21]} 17. Be2 {[%emt 0:15:22]} Rac8 {[%emt 0:11:24]} 18. c3 {[%emt 0:05:28]} Nc4 {[%emt 0:03:55]} 19. Bxc4 {[%emt 0:02:29]} Qxc4 {[%emt 0:00:03]} 20. Qb3 {[%emt 0:00:29]} Qd3 {[%emt 0:02:36]} 21. Qd1 {[%emt 0:02:46]} Qb5 {[%emt 0:01:20]} 22. Qb3 {[%emt 0:01:21]} Rc5 {[%emt 0:00:35]} 23. Qxb5 {[%emt 0:03:03]} Rxb5 {[%emt 0:00:02]} 24. O-O-O {[%emt 0:00:10]} Rc8 {[%emt 0:01:21]} 25. Kc2 {[%emt 0:03:22]} f5 {[%emt 0:03:18]} 26. b4 {[%emt 0:00:51]} Rxb4 {[%emt 0:00:38]} 27. Rb1 {[%emt 0:02:38]} Rbc4 {[%emt 0:00:50]} 28. Rb3 {[%emt 0:00:12]} b5 {[%emt 0:01:40]} 29. Rd1 {[%emt 0:02:39]} e4 {[%emt 0:00:28]} 30. fxe4 {[%emt 0:00:42]} fxe4 {[%emt 0:00:02]} 31. Re1 {[%emt 0:00:22]} R8c5 {[%emt 0:00:20]} 32. Re3 {[%emt 0:01:29]} Rxd5 {[%emt 0:00:17]} 33. Ra3 {[%emt 0:00:58]} Rg5 {[%emt 0:03:42]} 34. g3 {[%emt 0:01:40]} Rgc5 {[%emt 0:00:34]} 35. Rxa7 {[%emt 0:00:44]} b4 {[%emt 0:00:13]} 36. Ra4 {[%emt 0:00:39]} d5 {[%emt 0:00:27]} 37. Kd2 {[%emt 0:01:54]} bxc3+ {[%emt 0:00:14]} 0-1

[Event "Gibraltar Challengers B 2020"]
[Site "Caleta"]
[Date "2020.01.27"]
[Round "4.35"]
[White "Maldonado Mena, German"]
[Black "Li, Max J"]
[Result "1-0"]
[ECO "E35"]
[WhiteElo "1946"]
[BlackElo "2078"]
[Annotator "NA"]
[PlyCount "163"]
[EventDate "2020.01.20"]
[EventType "swiss"]
[EventCountry "GGB"]
[SourceTitle "playchess.com"]
[Source "ChessBase"]
[SourceQuality "1"]
[TimeControl "6600+10"]

1. d4 {[%emt 0:00:48]} Nf6 {[%emt 0:00:00]} 2. c4 {[%emt 0:00:07]} e6 {[%emt 0:00:06]} 3. Nc3 {[%emt 0:00:05]} Bb4 {[%emt 0:00:06]} 4. Qc2 {[%emt 0:00:05]} d5 {[%emt 0:03:50]} 5. cxd5 {[%emt 0:00:26]} exd5 {[%emt 0:00:20]} 6. Bg5 {[%emt 0:00:11]} Be6 {[%emt 0:00:41]} 7. Qb3 $146 {[%emt 0:01:04] E35: Nimzo-Indian: Classical: 4...d5 5 cxd5 exd5} ({Predecessor:} 7. e3 Nbd7 8. a3 Bxc3+ 9. Qxc3 h6 10. Bh4 Rc8 11. Bd3 Ne4 12. Bxd8 Nxc3 13. Bh4 Ne4 14. Ne2 g5 {½-½ (31) Donchenko,A (2559)-Short,N (2698) Douglas 2017}) 7... Bxc3+ {[%emt 0:04:25]} 8. bxc3 {[%emt 0:00:10]} b6 {[%emt 0:00:28]} 9. e3 {[%emt 0:01:16]} O-O {[%emt 0:02:25]} 10. Nf3 {[%emt 0:01:38]} c5 {[%emt 0:07:47]} 11. c4 {[%emt 0:01:33]} cxd4 {[%emt 0:00:46]} 12. Nxd4 {[%emt 0:00:13]} dxc4 {[%emt 0:00:16]} 13. Nxe6 {[%emt 0:03:01]} cxb3 {[%emt 0:04:37]} 14. Nxd8 {[%emt 0:00:07]} Rxd8 {[%emt 0:00:04]} 15. Bxf6 {[%emt 0:02:31]} gxf6 {[%emt 0:00:07]} 16. axb3 {[%emt 0:00:06]} Nc6 {[%emt 0:02:18]} 17. Bb5 {[%emt 0:01:25]} Nb4 {[%emt 0:01:42]} 18. O-O {[%emt 0:09:04]} a5 {[%emt 0:02:59]} 19. Rfd1 {[%emt 0:01:55]} Kg7 {[%emt 0:08:34]} 20. g4 {[%emt 0:02:09]} Kg6 {[%emt 0:11:21]} (20... Rac8 $14) 21. Bd7 {[%emt 0:00:38]} h6 {[%emt 0:04:13]} 22. Kg2 {[%emt 0:00:23]} Kg7 {[%emt 0:06:20]} 23. Kg3 {[%emt 0:03:38]} Ra7 {[%emt 0:03:50]} 24. Bb5 {[%emt 0:01:11]} Rd5 {[%emt 0:02:54]} 25. Bc4 {[%emt 0:01:02]} Rc5 {[%emt 0:04:30]} 26. Rd6 {[%emt 0:01:00]} b5 {[%emt 0:03:30]} 27. Be2 {[%emt 0:00:36]} Nd5 {[%emt 0:03:39]} 28. Bf3 {[%emt 0:01:01]} Nb4 {[%emt 0:01:19]} 29. Rb6 {[%emt 0:01:01]} Nd5 {[%emt 0:02:15]} 30. Rb8 {[%emt 0:00:14]} b4 {[%emt 0:00:28]} 31. Rd1 {[%emt 0:00:14]} Ne7 {[%emt 0:00:48]} 32. Rdd8 {[%emt 0:00:58]} f5 {[%emt 0:02:41]} 33. gxf5 {[%emt 0:00:50]} Rxf5 {[%emt 0:00:25]} 34. Be4 {[%emt 0:01:18]} Rg5+ {[%emt 0:02:36]} 35. Kf3 {[%emt 0:01:30]} Rh5 {[%emt 0:02:48]} 36. Kg3 {[%emt 0:02:34]} Rg5+ {[%emt 0:01:58]} 37. Kf4 {[%emt 0:00:52]} Rh5 {[%emt 0:01:08]} 38. Rh8 {[%emt 0:00:26]} f5 {[%emt 0:01:31]} 39. Bxf5 {[%emt 0:07:30]} Rxf5+ {[%emt 0:00:06]} 40. Kg3 {[%emt 0:00:05]} Rd5 {[%emt 0:00:38]} 41. Rhd8 {[%emt 0:00:32]} Rxd8 {[%emt 0:00:24]} 42. Rxd8 {[%emt 0:00:14]} a4 {[%emt 0:00:09]} 43. bxa4 {[%emt 0:00:05]} Rxa4 {[%emt 0:00:05]} 44. Rb8 {[%emt 0:00:17]} Nd5 {[%emt 0:02:10]} 45. e4 {[%emt 0:01:15]} Nc3 {[%emt 0:02:29]} 46. Kf4 {[%emt 0:00:24]} Ne2+ {[%emt 0:03:17]} 47. Ke5 {[%emt 0:00:38]} Nc1 {[%emt 0:00:24]} 48. f4 {[%emt 0:00:57]} b3 {[%emt 0:00:16]} 49. Kf5 {[%emt 0:01:37]} Ra7 {[%emt 0:02:09]} 50. e5 {[%emt 0:00:17]} Rf7+ {[%emt 0:00:34]} 51. Ke4 {[%emt 0:00:18]} Ra7 {[%emt 0:01:25]} 52. f5 {[%emt 0:01:27]} Ra4+ {[%emt 0:00:07]} 53. Kd5 {[%emt 0:00:07]} Ra5+ {[%emt 0:00:13]} 54. Kd6 {[%emt 0:00:21]} Ra6+ {[%emt 0:01:58]} 55. Ke7 {[%emt 0:00:06]} Nd3 {[%emt 0:00:49]} 56. f6+ {[%emt 0:00:45]} Kg6 {[%emt 0:00:07]} 57. Rg8+ {[%emt 0:03:07]} Kf5 {[%emt 0:00:09]} 58. f7 {[%emt 0:00:25]} Ra7+ {[%emt 0:00:04]} 59. Ke8 {[%emt 0:00:29]} Rxf7 {[%emt 0:00:47]} 60. Kxf7 {[%emt 0:00:12]} Nxe5+ {[%emt 0:00:05]} 61. Kg7 {[%emt 0:00:25]} Nf3 {[%emt 0:00:33]} 62. h3 {[%emt 0:00:39]} Ng5 {[%emt 0:00:42]} 63. h4 {[%emt 0:00:17]} Nf3 {[%emt 0:00:06]} 64. Rb8 {[%emt 0:02:35]} Nxh4 {[%emt 0:00:06]} 65. Kxh6 {[%emt 0:00:08]} Nf3 {[%emt 0:00:14]} 66. Rxb3 {[%emt 0:00:19]} Nd4 {[%emt 0:00:08]} 67. Re3 {[%emt 0:00:26]} Kf4 {[%emt 0:00:09]} 68. Re8 {[%emt 0:00:10]} Nf5+ {[%emt 0:00:16]} 69. Kg6 {[%emt 0:00:16]} Nh4+ $11 {[%emt 0:00:04]} 70. Kf6 {[%emt 0:00:16]} Ng2 {[%emt 0:00:05]} 71. Ra8 {[%emt 0:01:02]} Ne3 {[%emt 0:00:09]} 72. Ra4+ {[%emt 0:00:04]} Kf3 {[%emt 0:00:05]} 73. Ke5 {[%emt 0:00:08]} Ng4+ {[%emt 0:00:10]} 74. Kf5 {[%emt 0:00:23]} Ne3+ {[%emt 0:00:06]} 75. Kg5 {[%emt 0:00:04]} Nd5 {[%emt 0:00:13]} 76. Rd4 {[%emt 0:00:13]} Ne7 {[%emt 0:00:11]} 77. Rd6 {[%emt 0:02:09]} Nc8 {[%emt 0:00:28]} 78. Rc6 {[%emt 0:00:30]} Ne7 {[%emt 0:00:34]} 79. Rf6+ {[%emt 0:00:08]} Kg3 {[%emt 0:00:03]} 80. Rd6 {[%emt 0:00:11]} Kf3 {[%emt 0:00:07]} 81. Kf6 {[%emt 0:00:52]} Ng8+ {[%emt 0:00:29]} 82. Kf7 {[%emt 0:00:07]} 1-0

[Event "Gibraltar Challengers B 2020"]
[Site "Caleta"]
[Date "2020.01.27"]
[Round "4.37"]
[White "Kurzok, Zenon"]
[Black "Fischer, Robert"]
[Result "0-1"]
[ECO "B15"]
[WhiteElo "1702"]
[BlackElo "1923"]
[Annotator "NA"]
[PlyCount "46"]
[EventDate "2020.01.20"]
[EventType "swiss"]
[EventCountry "GGB"]
[SourceTitle "playchess.com"]
[Source "ChessBase"]
[SourceQuality "1"]
[TimeControl "6600+10"]

1. e4 {[%emt 0:00:59]} c6 {[%emt 0:00:00]} 2. d4 {[%emt 0:00:16]} d5 {[%emt 0:00:05]} 3. Nc3 {[%emt 0:00:10]} dxe4 {[%emt 0:00:10]} 4. Nxe4 {[%emt 0:00:07]} Nf6 {[%emt 0:00:14]} 5. Ng3 {[%emt 0:00:56]} h5 {[%emt 0:01:04]} 6. h4 {[%emt 0:03:54]} Bg4 {[%emt 0:00:32]} 7. Be2 {[%emt 0:00:26]} Nbd7 {[%emt 0:03:27]} 8. Nf3 {[%emt 0:01:25]} e6 {[%emt 0:00:37]} 9. Ne5 {[%emt 0:23:50]} Nxe5 {[%emt 0:02:57]} 10. dxe5 {[%emt 0:00:05]} Qa5+ {[%emt 0:00:18]} 11. c3 {[%emt 0:02:06]} Qxe5 {[%emt 0:00:44]} 12. O-O {[%emt 0:00:35] [#]} (12. Bg5 $17) 12... Bc5 $1 {[%emt 0:08:05]} 13. Kh1 $2 {[%emt 0:00:08] [#]} (13. Qd3) 13... Bxf2 $1 {[%emt 0:04:31]} 14. Rxf2 {[%emt 0:06:04]} Qxg3 {[%emt 0:00:59] Double Attack} 15. Kg1 {[%emt 0:01:33]} Ne4 {[%emt 0:08:09]} 16. Rf4 {[%emt 0:01:33]} Rd8 {[%emt 0:05:02]} 17. Qf1 {[%emt 0:02:46]} Nf6 {[%emt 0:07:11]} 18. Rb4 $19 {[%emt 0:13:16]} Qxh4 {[%emt 0:08:54]} 19. Rxb7 {[%emt 0:01:26]} O-O {[%emt 0:00:47]} 20. Be3 {[%emt 0:02:31]} Rd5 {[%emt 0:08:02]} 21. Bf2 {[%emt 0:06:07]} Qg5 {[%emt 0:00:41]} 22. Rb4 {[%emt 0:03:21]} Rd2 {[%emt 0:04:08]} 23. Bxg4 {[%emt 0:08:41]} Nxg4 {[%emt 0:00:27]} 0-1

[Event "Gibraltar Challengers B 2020"]
[Site "Caleta"]
[Date "2020.01.27"]
[Round "4.38"]
[White "Skutta, Bernd"]
[Black "Erdogan, Hassan"]
[Result "1-0"]
[ECO "B07"]
[WhiteElo "1998"]
[BlackElo "1830"]
[Annotator "NA"]
[PlyCount "51"]
[EventDate "2020.01.20"]
[EventType "swiss"]
[EventCountry "GGB"]
[SourceTitle "playchess.com"]
[Source "ChessBase"]
[SourceQuality "1"]
[TimeControl "6600+10"]

1. d4 {[%emt 0:15:54]} d6 {[%emt 0:00:00]} 2. e4 {[%emt 0:00:39]} g6 {[%emt 0:00:00]} 3. Nc3 {[%emt 0:00:09]} Bg7 {[%emt 0:04:20]} 4. Be3 {[%emt 0:00:18]} Nf6 {[%emt 0:00:25]} 5. f3 {[%emt 0:01:14]} c6 {[%emt 0:02:43]} 6. Qd2 {[%emt 0:00:34]} h6 {[%emt 0:01:34]} 7. h4 {[%emt 0:01:50]} b5 {[%emt 0:02:13]} 8. Bd3 {[%emt 0:02:13]} b4 {[%emt 0:08:38]} (8... h5 $14) 9. Nce2 {[%emt 0:01:25]} a5 {[%emt 0:01:35]} 10. Nh3 {[%emt 0:01:22]} Ba6 {[%emt 0:02:02]} (10... Bxh3 $14 11. Rxh3 Nbd7) 11. Nf2 {[%emt 0:03:18]} Bxd3 {[%emt 0:07:43]} 12. Nxd3 {[%emt 0:00:19]} Nfd7 {[%emt 0:08:16]} 13. h5 {[%emt 0:05:52]} g5 {[%emt 0:00:44]} 14. f4 {[%emt 0:02:43]} Nf6 {[%emt 0:20:46]} ({Better is} 14... gxf4 $14 15. Bxf4 (15. Ndxf4 Nb6 $11) 15... c5) 15. Ng3 {[%emt 0:03:25]} ({Much worse is} 15. fxg5 $6 Nxe4 16. Qc1 hxg5 $14) 15... gxf4 {[%emt 0:00:39]} 16. Bxf4 {[%emt 0:02:09]} e6 {[%emt 0:01:25]} 17. O-O-O $16 {[%emt 0:01:24]} d5 {[%emt 0:11:17]} 18. Rhe1 {[%emt 0:02:50]} Nxe4 {[%emt 0:02:39]} 19. Nxe4 {[%emt 0:01:10]} dxe4 {[%emt 0:00:05]} 20. Rxe4 {[%emt 0:02:18]} Qd5 {[%emt 0:00:22]} 21. Qe2 {[%emt 0:03:10]} Qxa2 {[%emt 0:02:32]} 22. d5 {[%emt 0:14:56]} Bc3 {[%emt 0:05:00]} 23. Rxe6+ {[%emt 0:10:47]} Kd8 {[%emt 0:01:22]} 24. Rd6+ {[%emt 0:02:32]} Kc8 {[%emt 0:00:00]} 25. Qg4+ {[%emt 0:01:26]} Kb7 {[%emt 0:03:46]} 26. dxc6+ {[%emt 0:05:32]} 1-0